fUSD/lending_fUSD_20241215
["ID","MTS","AMOUNT","RATE_DAILY","PERIOD"]
[345460177,1734271847276,-500.0,0.00019489,3]
[345460179,1734271847287,-550.52,0.00019489,3]
[345460181,1734271847296,-500.0,0.00019489,3]
[345460183,1734271847305,-500.0,0.00019489,3]
[345460184,1734271847315,-500.0,0.00019489,3]
[345460186,1734271847326,-500.0,0.00019489,3]
[345460187,1734271847335,-500.0,0.00019489,3]
[345460189,1734271847344,-500.0,0.00019489,3]
[345460190,1734271847353,-470.0,0.00019489,3]
[345460192,1734271847362,-500.0,0.00019489,3]
[345460193,1734271847372,-261.38098769,0.00019489,3]
[345460195,1734271847387,-290.69901231,0.00019489,3]
[345460197,1734271847397,-500.0,0.00019489,3]
[345460198,1734271847406,-500.0,0.00019489,3]
[345460200,1734271847416,-150.383867,0.00019489,3]
[345460201,1734271847425,-500.0,0.00019489,3]
[345460203,1734271847435,-500.0,0.00019489,3]
[345460205,1734271847444,-491.0,0.00019489,3]
[345460206,1734271847453,-500.0,0.00019489,3]
[345460208,1734271847463,-500.0,0.00019489,3]
[345460209,1734271847473,-500.0,0.00019489,3]
[345460211,1734271847483,-500.0,0.00019489,3]
[345460212,1734271847493,-500.0,0.00019489,3]
[345460214,1734271847503,-713.8,0.00019489,3]
[345460216,1734271847512,-500.0,0.00019489,3]
[345460217,1734271847522,-500.0,0.00019489,3]
[345460219,1734271847532,-379.62,0.00019489,3]
[345460221,1734271847541,-500.0,0.00019489,3]
[345460222,1734271847550,-500.0,0.00019489,3]
[345460224,1734271847559,-500.0,0.00019489,3]
[345460225,1734271847569,-500.0,0.00019489,3]
[345460227,1734271847579,-151.2,0.00019489,3]
[345460229,1734271847589,-500.0,0.00019489,3]
[345460231,1734271847598,-500.0,0.00019489,3]
[345460232,1734271847608,-500.0,0.00019489,3]
[345460234,1734271847617,-500.0,0.00019489,3]
[345460236,1734271847627,-508.60882008,0.00019489,3]
[345460238,1734271847636,-500.0,0.00019489,3]
[345460239,1734271847646,-500.0,0.00019489,3]
[345460241,1734271847656,-500.0,0.00019489,3]
[345460253,1734271847808,-500.0,0.00019489,3]
[345460255,1734271847819,-500.0,0.00019489,3]
[345460257,1734271847830,-500.0,0.00019489,3]
[345460259,1734271847839,-500.0,0.00019489,3]
[345460260,1734271847849,-500.0,0.00019489,3]
[345460262,1734271847860,-500.0,0.00019489,3]
[345460264,1734271847869,-500.0,0.00019489,3]
[345460265,1734271847878,-500.0,0.00019489,3]
[345460267,1734271847887,-500.0,0.00019489,3]
[345460269,1734271847896,-544.31,0.00019489,3]
[345460270,1734271847905,-544.31,0.00019489,3]
[345460272,1734271847914,-500.0,0.00019489,3]
[345460274,1734271847923,-500.0,0.00019489,3]
[345460275,1734271847932,-509.77598357,0.00019489,3]
[345460277,1734271847941,-500.0,0.00019489,3]
[345460279,1734271847950,-500.0,0.00019489,3]
[345460280,1734271847960,-515.76314086,0.00019489,3]
[345460282,1734271847969,-500.0,0.00019489,3]
[345460284,1734271847979,-500.0,0.00019489,3]
[345460285,1734271847990,-500.0,0.00019489,3]
[345460287,1734271847999,-500.0,0.00019489,3]
[345460288,1734271848009,-500.0,0.00019489,3]
[345460289,1734271848019,-500.0,0.00019489,3]
[345460290,1734271848029,-500.0,0.00019489,3]
[345460291,1734271848039,-280.66,0.00019489,3]
[345460292,1734271848048,-501.46656322,0.00019489,3]
[345460293,1734271848058,-500.0,0.00019489,3]
[345460294,1734271848068,-500.0,0.00019489,3]
[345460295,1734271848078,-500.0,0.00019489,3]
[345460296,1734271848087,-500.0,0.00019489,3]
[345460298,1734271848098,-500.0,0.00019489,3]
[345460300,1734271848108,-500.0,0.00019489,3]
[345460301,1734271848117,-500.0,0.00019489,3]
[345460303,1734271848127,-586.94342556,0.00019489,3]
[345460305,1734271848137,-500.0,0.00019489,3]
[345460308,1734271848147,-501.72966183,0.00019489,3]
[345460310,1734271848156,-500.0,0.00019489,3]
[345460312,1734271848166,-500.0,0.00019489,3]
[345460314,1734271848176,-500.0,0.00019489,3]
[345460316,1734271848186,-500.0,0.00019489,3]
[345460318,1734271848196,-500.0,0.00019489,3]
[345460320,1734271848208,-500.0,0.00019489,3]
[345460322,1734271848218,-500.0,0.00019489,3]
[345460324,1734271848227,-502.81929174,0.00019489,3]
[345460326,1734271848237,-500.0,0.00019489,3]
[345460328,1734271848249,-500.0,0.00019489,3]
[345460330,1734271848259,-500.0,0.00019489,3]
[345460332,1734271848268,-485.67,0.00019489,3]
[345460334,1734271848278,-500.0,0.00019489,3]
[345460336,1734271848289,-571.13,0.00019489,3]
[345460338,1734271848299,-500.0,0.00019489,3]
[345460340,1734271848309,-500.0,0.00019489,3]
[345460342,1734271848319,-556.77,0.00019489,3]
[345460344,1734271848329,-500.0,0.00019489,3]
[345460346,1734271848339,-500.0,0.00019489,3]
[345460348,1734271848348,-495.40809184,0.00019489,3]
[345460350,1734271848358,-500.0,0.00019489,3]
[345460352,1734271848367,-500.0,0.00019489,3]
[345460353,1734271848376,-500.0,0.00019489,3]
[345460355,1734271848386,-501.84785571,0.00019489,3]
[345460357,1734271848395,-500.0,0.00019489,3]
[345460359,1734271848404,-500.0,0.00019489,3]
[345460361,1734271848414,-500.0,0.00019489,3]
[345460363,1734271848427,-500.0,0.00019489,3]
[345460365,1734271848436,-500.0,0.00019489,3]
[345460367,1734271848445,-500.0,0.00019489,3]
[345460369,1734271848454,-540.84,0.00019489,3]
[345460371,1734271848464,-500.0,0.00019489,3]
[345460373,1734271848473,-500.0,0.00019489,3]
[345460375,1734271848483,-500.0,0.00019489,3]
[345460377,1734271848492,-500.0,0.00019489,3]
[345460379,1734271848501,-500.0,0.00019489,3]
[345460381,1734271848511,-545.08,0.00019489,3]
[345460383,1734271848520,-500.0,0.00019489,3]
[345460385,1734271848529,-545.08,0.00019489,3]
[345460387,1734271848538,-500.0,0.00019489,3]
[345460389,1734271848548,-500.0,0.00019489,3]
[345460391,1734271848557,-500.0,0.00019489,3]
[345460393,1734271848567,-500.0,0.00019489,3]
[345460395,1734271848576,-500.0,0.00019489,3]
[345460397,1734271848585,-2543.28133533,0.0001949,2]
[345460399,1734271848598,-9929.94737219,0.0001949,2]
[345460402,1734271848609,-34604.594775,0.0001949,2]
[345460404,1734271848624,-355.37109519,0.00019488,3]
[345460406,1734271848636,-144.62890481,0.00019488,3]
[345460408,1734271848645,-1054.03109519,0.0001949,2]
[345460411,1734271848656,-875.91,0.0001949,2]
[345461288,1734271858008,450.0,0.00013,2]
[345461396,1734271859099,500.0,0.00015,2]
[345461477,1734272333553,162.74,0.00010137,2]
[345461479,1734273002422,150.0,0.00010137,2]
[345461480,1734273002620,150.0,0.00010137,2]
[345461495,1734273031953,-200.0,0.0001537,2]
[345461496,1734273031963,-200.0,0.0001577,2]
[345461497,1734273031972,-200.0,0.0001616,2]
[345461498,1734273031982,-14.74399974,0.00016178,2]
[345461499,1734273032053,-1241.47600026,0.00016178,2]
[345461500,1734273032063,-200.0,0.0001656,2]
[345461501,1734273032072,-200.0,0.0001696,2]
[345461502,1734273032081,-550.0,0.00017,2]
[345461503,1734273032091,-250.0,0.00017137,2]
[345461504,1734273032099,-200.0,0.00017189,2]
[345461505,1734273032286,-250.0,0.00017196,2]
[345461506,1734273032297,-300.0,0.00017205,2]
[345461507,1734273032307,-3820.80561106,0.00017206,2]
[345461508,1734273032321,-1000.09,0.00017206,2]
[345461509,1734273032333,-19079.10438894,0.00017206,2]
[345461510,1734273032343,-407.68,0.00017206,2]
[345461511,1734273032352,-161.58,0.00017249,2]
[345461512,1734273032362,-1009.06,0.00017249,2]
[345461514,1734273032371,-23558.67,0.00017258,2]
[345461516,1734273032380,-200.0,0.0001735,2]
[345461518,1734273032389,-646.18,0.00017358,2]
[345461520,1734273032399,-1569.87,0.00017527,2]
[345461522,1734273032408,-768.28,0.00017527,2]
[345461523,1734273032418,-170.33,0.00017534,2]
[345461524,1734273032427,-463.4,0.00017668,2]
[345461525,1734273032436,-167.67,0.00017722,2]
[345461526,1734273032445,-250.0,0.00017742,2]
[345461527,1734273032463,-200.0,0.0001775,2]
[345461528,1734273032472,-669.8100697,0.00017819,2]
[345461529,1734273032481,-1000.0,0.00017919,2]
[345461530,1734273032490,-653.581,0.00017919,2]
[345461531,1734273032498,-1554.11,0.00017923,2]
[345461532,1734273032506,-241.1954175,0.00018,2]
[345461533,1734273032515,-150.0,0.00018,2]
[345461534,1734273032524,-178.14694202,0.00018,2]
[345461535,1734273032533,-150.0,0.00018,2]
[345461537,1734273032542,-150.0,0.00018,2]
[345461538,1734273032551,-150.36642047,0.00018,2]
[345461540,1734273032560,-150.0,0.00018,2]
[345461542,1734273032569,-150.0,0.00018,2]
[345461544,1734273032579,-200.0,0.00018018,2]
[345461546,1734273032588,-241.1954175,0.0001802,2]
[345461548,1734273032597,-178.14694202,0.0001802,2]
[345461550,1734273032606,-150.0,0.0001804,2]
[345461552,1734273032615,-241.1954175,0.0001804,2]
[345461553,1734273032624,-178.14694202,0.0001804,2]
[345461554,1734273032633,-241.1954175,0.00018061,2]
[345461556,1734273032642,-178.14694202,0.00018061,2]
[345461558,1734273032651,-150.0,0.0001808,2]
[345461560,1734273032660,-241.1954175,0.00018081,2]
[345461562,1734273032669,-178.14694202,0.00018081,2]
[345461564,1734273032679,-355.69,0.00018082,2]
[345461566,1734273032688,-183.99,0.00018096,2]
[345461568,1734273032699,-1500.0,0.00018096,2]
[345461570,1734273032706,-792.68,0.00018097,2]
[345461572,1734273032715,-241.1954175,0.00018101,2]
[345461574,1734273032724,-178.14694202,0.00018101,2]
[345461576,1734273032734,-183.99,0.00018101,2]
[345461578,1734273032742,-183.99,0.00018106,2]
[345461580,1734273032751,-183.99,0.00018111,2]
[345461582,1734273032760,-183.99,0.00018115,2]
[345461583,1734273032773,-150.0,0.0001812,2]
[345461585,1734273032782,-183.99,0.0001812,2]
[345461587,1734273032791,-241.1954175,0.00018121,2]
[345461589,1734273032800,-178.14694202,0.00018121,2]
[345461591,1734273032810,-183.99,0.00018125,2]
[345461592,1734273032821,-150.0,0.00018125,2]
[345461593,1734273032830,-183.99,0.0001813,2]
[345461594,1734273032839,-183.99,0.00018134,2]
[345461595,1734273032848,-183.99,0.00018139,2]
[345461596,1734273032857,-200.0,0.0001814,2]
[345461597,1734273032867,-241.1954175,0.00018141,2]
[345461598,1734273032875,-178.14694202,0.00018141,2]
[345461599,1734273032884,-183.99,0.00018144,2]
[345461600,1734273032893,-183.99,0.00018149,2]
[345461601,1734273032902,-183.99,0.00018153,2]
[345461602,1734273032911,-150.0,0.00018154,2]
[345461603,1734273032920,-183.99,0.00018158,2]
[345461604,1734273032929,-150.0,0.0001816,2]
[345461605,1734273032939,-241.1954175,0.00018162,2]
[345461606,1734273032948,-178.14694202,0.00018162,2]
[345461607,1734273032957,-183.99,0.00018163,2]
[345461608,1734273032966,-183.99,0.00018168,2]
[345461609,1734273032975,-183.99,0.00018173,2]
[345461610,1734273032985,-1000.0,0.00018177,2]
[345461611,1734273032993,-183.99,0.00018177,2]
[345461612,1734273033002,-241.1954175,0.00018182,2]
[345461613,1734273033011,-178.14694202,0.00018182,2]
[345461614,1734273033020,-183.99,0.00018182,2]
[345461615,1734273033029,-183.99,0.00018187,2]
[345461616,1734273033039,-150.0,0.000182,2]
[345461617,1734273033048,-241.1954175,0.00018202,2]
[345461618,1734273033057,-178.14694202,0.00018202,2]
[345461619,1734273033067,-241.1954175,0.00018222,2]
[345461620,1734273033076,-178.14694202,0.00018222,2]
[345461621,1734273033084,-150.0,0.0001824,2]
[345461622,1734273033092,-241.1954175,0.00018242,2]
[345461623,1734273033102,-178.14694202,0.00018242,2]
[345461624,1734273033111,-150.0,0.0001825,2]
[345461625,1734273033121,-241.1954175,0.00018263,2]
[345461626,1734273033130,-178.14694202,0.00018263,2]
[345461627,1734273033139,-150.0,0.0001828,2]
[345461628,1734273033148,-241.1954175,0.00018283,2]
[345461629,1734273033157,-178.14694202,0.00018283,2]
[345461630,1734273033166,-150.0,0.00018286,2]
[345461631,1734273033175,-241.1954175,0.00018303,2]
[345461632,1734273033185,-178.14694202,0.00018303,2]
[345461633,1734273033194,-150.0,0.00018308,2]
[345461634,1734273033206,-150.0,0.0001832,2]
[345461635,1734273033215,-241.1954175,0.00018323,2]
[345461636,1734273033224,-178.14694202,0.00018323,2]
[345461637,1734273033234,-241.1954175,0.00018343,2]
[345461638,1734273033243,-178.14694202,0.00018343,2]
[345461639,1734273033252,-150.0,0.0001836,2]
[345461640,1734273033262,-241.1954175,0.00018364,2]
[345461641,1734273033271,-178.14694202,0.00018364,2]
[345461642,1734273033281,-150.0,0.00018375,2]
[345461643,1734273033290,-241.1954175,0.00018384,2]
[345461644,1734273033299,-178.14694202,0.00018384,2]
[345461645,1734273033309,-150.0,0.000184,2]
[345461646,1734273033318,-241.1954175,0.00018404,2]
[345461647,1734273033328,-178.14694202,0.00018404,2]
[345461648,1734273033337,-241.1954175,0.00018424,2]
[345461649,1734273033347,-178.14694202,0.00018424,2]
[345461650,1734273033357,-36385.0,0.00018436,2]
[345461651,1734273033367,-150.0,0.0001844,2]
[345461652,1734273033376,-1256.22,0.00018442,2]
[345461653,1734273033386,-241.1954175,0.00018444,2]
[345461654,1734273033395,-178.14694202,0.00018444,2]
[345461655,1734273033404,-150.0,0.00018462,2]
[345461656,1734273033413,-241.1954175,0.00018465,2]
[345461657,1734273033423,-178.14694202,0.00018465,2]
[345461658,1734273033431,-150.0,0.0001848,2]
[345461659,1734273033441,-241.1954175,0.00018485,2]
[345461660,1734273033451,-178.14694202,0.00018485,2]
[345461661,1734273033461,-150.0,0.000185,2]
[345461662,1734273033470,-241.1954175,0.00018505,2]
[345461663,1734273033479,-178.14694202,0.00018505,2]
[345461664,1734273033488,-150.0,0.0001852,2]
[345461665,1734273033498,-241.1954175,0.00018525,2]
[345461666,1734273033508,-178.14694202,0.00018525,2]
[345461667,1734273033517,-200.0,0.0001854,2]
[345461668,1734273033526,-241.1954175,0.00018545,2]
[345461669,1734273033535,-178.14694202,0.00018545,2]
[345461670,1734273033545,-150.0,0.0001856,2]
[345461671,1734273033554,-241.1954175,0.00018566,2]
[345461672,1734273033563,-178.14694202,0.00018566,2]
[345461673,1734273033572,-150.0,0.00018571,2]
[345461674,1734273033580,-241.1954175,0.00018586,2]
[345461675,1734273033589,-178.14694202,0.00018586,2]
[345461676,1734273033598,-150.0,0.000186,2]
[345461677,1734273033608,-241.1954175,0.00018606,2]
[345461678,1734273033617,-178.14694202,0.00018606,2]
[345461679,1734273033627,-150.0,0.00018615,2]
[345461680,1734273033636,-150.0,0.00018625,2]
[345461681,1734273033645,-241.1954175,0.00018626,2]
[345461682,1734273033655,-178.14694202,0.00018626,2]
[345461683,1734273033664,-150.0,0.0001864,2]
[345461684,1734273033673,-241.1954175,0.00018646,2]
[345461685,1734273033682,-178.14694202,0.00018646,2]
[345461686,1734273033692,-583.24234658,0.00018664,2]
[345461687,1734273033702,-500.0,0.00018664,2]
[345461688,1734273033711,-241.1954175,0.00018667,2]
[345461689,1734273033720,-178.14694202,0.00018667,2]
[345461690,1734273033729,-150.0,0.0001868,2]
[345461691,1734273033738,-241.1954175,0.00018687,2]
[345461692,1734273033747,-178.14694202,0.00018687,2]
[345461693,1734273033756,-241.1954175,0.00018707,2]
[345461694,1734273033766,-178.14694202,0.00018707,2]
[345461695,1734273033779,-150.0,0.0001872,2]
[345461696,1734273033788,-241.1954175,0.00018727,2]
[345461697,1734273033797,-178.14694202,0.00018727,2]
[345461698,1734273033806,-241.1954175,0.00018747,2]
[345461699,1734273033817,-178.14694202,0.00018747,2]
[345461700,1734273033826,-150.0,0.0001875,2]
[345461701,1734273033836,-355.69,0.00018751,2]
[345461702,1734273033846,-150.0,0.0001876,2]
[345461703,1734273033855,-241.1954175,0.00018768,2]
[345461704,1734273033864,-178.14694202,0.00018768,2]
[345461705,1734273033874,-150.0,0.00018769,2]
[345461706,1734273033883,-241.1954175,0.00018788,2]
[345461707,1734273033892,-178.14694202,0.00018788,2]
[345461708,1734273033900,-420.0,0.00018788,2]
[345461709,1734273033910,-1000.0,0.000188,2]
[345461710,1734273033919,-150.0,0.000188,2]
[345461711,1734273033928,-241.1954175,0.00018808,2]
[345461712,1734273033937,-178.14694202,0.00018808,2]
[345461713,1734273033947,-241.1954175,0.00018828,2]
[345461714,1734273033959,-178.14694202,0.00018828,2]
[345461715,1734273033968,-150.0,0.0001884,2]
[345461716,1734273033977,-241.1954175,0.00018848,2]
[345461717,1734273033987,-178.14694202,0.00018848,2]
[345461718,1734273033996,-150.0,0.00018857,2]
[345461719,1734273034005,-241.1954175,0.00018869,2]
[345461720,1734273034015,-178.14694202,0.00018869,2]
[345461721,1734273034024,-150.0,0.00018875,2]
[345461722,1734273034033,-150.0,0.0001888,2]
[345461723,1734273034043,-241.1954175,0.00018889,2]
[345461724,1734273034053,-178.14694202,0.00018889,2]
[345461725,1734273034062,-1356.3940691,0.0001889,2]
[345461726,1734273034071,-2188.05669333,0.000189,2]
[345461727,1734273034080,-1000.0,0.000189,2]
[345461728,1734273034089,-5000.0,0.000189,2]
[345461729,1734273034098,-2758.13534854,0.000189,2]
[345461730,1734273034107,-241.1954175,0.00018909,2]
[345461731,1734273034116,-178.14694202,0.00018909,2]
[345461732,1734273034126,-150.0,0.0001892,2]
[345461733,1734273034135,-150.0,0.00018923,2]
[345461734,1734273034144,-241.1954175,0.00018929,2]
[345461735,1734273034153,-178.14694202,0.00018929,2]
[345461736,1734273034162,-200.0,0.0001894,2]
[345461737,1734273034171,-241.1954175,0.00018949,2]
[345461738,1734273034179,-178.14694202,0.00018949,2]
[345461739,1734273034188,-434.9492,0.00018959,2]
[345461740,1734273034197,-150.0,0.0001896,2]
[345461741,1734273034208,-241.1954175,0.0001897,2]
[345461742,1734273034221,-178.14694202,0.0001897,2]
[345461743,1734273034231,-241.1954175,0.0001899,2]
[345461744,1734273034241,-178.14694202,0.0001899,2]
[345461745,1734273034250,-150.24,0.0001899,2]
[345461746,1734273034260,-7500.0,0.00018999,2]
[345461747,1734273034269,-7500.0,0.00018999,2]
[345461748,1734273034279,-128259.8127521,0.00019,4]
[345461749,1734273034288,-76560.99915822,0.00019,2]
[345461750,1734273034526,-473.89346681,0.00019,2]
[345461777,1734273037835,-2193.45563,0.00019,2]
[345461787,1734273038181,-1627.30109231,0.00019,2]
[345461796,1734273039826,-2467.16,0.00019,2]
[345461798,1734273039850,-3447.78727767,0.00019,2]
[345461799,1734273039863,-1452.21272233,0.00019,2]
[345461800,1734273039874,-1015.326714,0.00019,2]
[345461801,1734273040163,-403.635001,0.00019,2]
[345461819,1734273043098,-3891.5,0.00019,2]
[345461835,1734273045831,-665.8254746,0.00019,2]
[345461836,1734273045913,-1665.0879,0.00019,2]
[345461859,1734273046598,-461701.32916306,0.00019,2]
[345461860,1734273046608,-600.0,0.00019,2]
[345461861,1734273046617,-361.008,0.00019,2]
[345461862,1734273046627,-150.0,0.00019,2]
[345461863,1734273046637,-150.0,0.00019,2]
[345461864,1734273046647,-1356.3940691,0.00019002,2]
[345461865,1734273046656,-241.1954175,0.0001901,2]
[345461866,1734273046667,-178.14694202,0.0001901,2]
[345461867,1734273046676,-7500.0,0.00019011,2]
[345461868,1734273046685,-2758.13534851,0.00019011,2]
[345461869,1734273046695,-241.1954175,0.0001903,2]
[345461870,1734273046704,-178.14694202,0.0001903,2]
[345461871,1734273046714,-150.0,0.0001904,2]
[345461872,1734273046723,-241.1954175,0.00019051,2]
[345461873,1734273046732,-178.14694202,0.00019051,2]
[345461874,1734273046742,-241.1954175,0.00019071,2]
[345461875,1734273046752,-178.14694202,0.00019071,2]
[345461876,1734273046761,-150.0,0.00019077,2]
[345461877,1734273046772,-150.0,0.0001908,2]
[345461878,1734273046784,-241.1954175,0.00019091,2]
[345461879,1734273046793,-178.14694202,0.00019091,2]
[345461880,1734273046803,-1000.0,0.000191,2]
[345461881,1734273046812,-241.1954175,0.00019111,2]
[345461882,1734273046822,-178.14694202,0.00019111,2]
[345461883,1734273046830,-1356.3940691,0.00019114,2]
[345461884,1734273046839,-150.0,0.0001912,2]
[345461885,1734273046850,-2758.13534851,0.00019122,2]
[345461886,1734273046860,-150.0,0.00019125,2]
[345461887,1734273046869,-241.1954175,0.00019131,2]
[345461888,1734273046878,-178.14694202,0.00019131,2]
[345461889,1734273046887,-150.0,0.00019143,2]
[345461890,1734273046896,-241.1954175,0.00019152,2]
[345461891,1734273046906,-178.14694202,0.00019152,2]
[345461892,1734273046916,-150.0,0.0001916,2]
[345461893,1734273046926,-241.1954175,0.00019172,2]
[345461894,1734273046936,-178.14694202,0.00019172,2]
[345461895,1734273046947,-7500.0,0.00019177,2]
[345461896,1734273046957,-500.0,0.00019178,2]
[345461897,1734273046967,-500.0,0.00019178,2]
[345461898,1734273046976,-500.0,0.00019178,2]
[345461899,1734273046985,-500.0,0.00019178,2]
[345461900,1734273046995,-500.0,0.00019178,2]
[345461901,1734273047004,-500.0,0.00019178,2]
[345461902,1734273047014,-500.0,0.00019178,2]
[345461903,1734273047023,-185.40319584,0.00019178,2]
[345461904,1734273047034,-500.0,0.00019178,2]
[345461905,1734273047045,-500.0,0.00019178,2]
[345461906,1734273047056,-500.0,0.00019178,2]
[345461907,1734273047065,-500.0,0.00019178,2]
[345461908,1734273047076,-471.49409939,0.00019178,2]
[345461909,1734273047087,-500.0,0.00019178,2]
[345461910,1734273047097,-500.0,0.00019178,2]
[345461911,1734273047106,-500.0,0.00019178,2]
[345461912,1734273047115,-500.0,0.00019178,2]
[345461913,1734273047124,-500.0,0.00019178,2]
[345461914,1734273047133,-500.0,0.00019178,2]
[345461915,1734273047142,-500.0,0.00019178,2]
[345461916,1734273047151,-500.0,0.00019178,2]
[345461917,1734273047160,-500.0,0.00019178,2]
[345461918,1734273047169,-500.0,0.00019178,2]
[345461919,1734273047180,-500.0,0.00019178,2]
[345461920,1734273047190,-500.0,0.00019178,2]
[345461921,1734273047200,-500.0,0.00019178,2]
[345461922,1734273047208,-300.38975521,0.00019178,2]
[345461923,1734273047219,-500.0,0.00019178,2]
[345461924,1734273047228,-500.0,0.00019178,2]
[345461925,1734273047237,-500.0,0.00019178,2]
[345461926,1734273047246,-500.0,0.00019178,2]
[345461927,1734273047258,-500.0,0.00019178,2]
[345461928,1734273047267,-379.28964008,0.00019178,2]
[345461929,1734273047277,-500.0,0.00019178,2]
[345461930,1734273047286,-500.0,0.00019178,2]
[345461931,1734273047295,-500.0,0.00019178,2]
[345461932,1734273047305,-500.0,0.00019178,2]
[345461933,1734273047314,-500.0,0.00019178,2]
[345461934,1734273047324,-500.0,0.00019178,2]
[345461935,1734273047333,-500.0,0.00019178,2]
[345461936,1734273047344,-499.00358025,0.00019178,2]
[345461937,1734273047355,-500.0,0.00019178,2]
[345461938,1734273047364,-500.0,0.00019178,2]
[345461939,1734273047372,-499.79246493,0.00019178,2]
[345461940,1734273047381,-500.0,0.00019178,2]
[345461941,1734273047390,-500.0,0.00019178,2]
[345461942,1734273047399,-500.0,0.00019178,2]
[345461943,1734273047408,-500.0,0.00019178,2]
[345461944,1734273047418,-500.0,0.00019178,2]
[345461945,1734273047427,-500.0,0.00019178,2]
[345461946,1734273047436,-500.0,0.00019178,2]
[345461947,1734273047445,-500.0,0.00019178,2]
[345461948,1734273047454,-500.0,0.00019178,2]
[345461949,1734273047464,-500.0,0.00019178,2]
[345461950,1734273047474,-500.0,0.00019178,2]
[345461951,1734273047483,-187.9215932,0.00019178,2]
[345461952,1734273047492,-486.74511652,0.00019178,2]
[345461953,1734273047502,-500.0,0.00019178,2]
[345461954,1734273047511,-500.0,0.00019178,2]
[345461955,1734273047520,-581.19164857,0.00019178,2]
[345461956,1734273047530,-500.0,0.00019178,2]
[345461957,1734273047539,-500.0,0.00019178,2]
[345461958,1734273047548,-500.0,0.00019178,2]
[345461959,1734273047557,-500.0,0.00019178,2]
[345461960,1734273047566,-500.0,0.00019178,2]
[345461961,1734273047576,-500.0,0.00019178,2]
[345461962,1734273047585,-500.0,0.00019178,2]
[345461963,1734273047595,-500.0,0.00019178,2]
[345461964,1734273047603,-500.0,0.00019178,2]
[345461965,1734273047612,-500.0,0.00019178,2]
[345461966,1734273047621,-500.0,0.00019178,2]
[345461967,1734273047630,-193.75615617,0.00019178,2]
[345461968,1734273047639,-500.0,0.00019178,2]
[345461969,1734273047648,-500.0,0.00019178,2]
[345461970,1734273047657,-224.29408946,0.00019178,2]
[345461971,1734273047666,-560.91,0.00019178,2]
[345461972,1734273047675,-500.0,0.00019178,2]
[345461973,1734273047683,-302.24550677,0.00019178,2]
[345461974,1734273047693,-500.0,0.00019178,2]
[345461975,1734273047702,-500.0,0.00019178,2]
[345461976,1734273047711,-500.0,0.00019178,2]
[345461977,1734273047721,-500.0,0.00019178,2]
[345461978,1734273047730,-500.0,0.00019178,2]
[345461979,1734273047739,-500.0,0.00019178,2]
[345461980,1734273047747,-500.0,0.00019178,2]
[345461981,1734273047756,-382.62955097,0.00019178,2]
[345461982,1734273047765,-500.0,0.00019178,2]
[345461983,1734273047778,-500.0,0.00019178,2]
[345461984,1734273047787,-500.0,0.00019178,2]
[345461985,1734273047795,-500.0,0.00019178,2]
[345461986,1734273047805,-500.0,0.00019178,2]
[345461987,1734273047815,-714.06,0.00019178,2]
[345461988,1734273047824,-714.06,0.00019178,2]
[345461989,1734273047833,-500.0,0.00019178,2]
[345461990,1734273047842,-500.0,0.00019178,2]
[345461991,1734273047853,-500.0,0.00019178,2]